Cogmind - Beta 15 @@@ ROGUE MODE // 2025.05.26 @ 19:06:25 Player: Elias Result: Destroyed by S-27 Virus with Autogun Performance ------------- Evolutions (3) 1500 Regions Visited (7) 1400 Robots Destroyed (99) 495 Value Destroyed (2605) 2605 Prototype IDs (11) 220 Alien Tech Used (0) 0 Bonus (0) 0 TOTAL SCORE: 6220 Bonus ------- None Cogmind --------- Core Integrity 0/700 Matter 299/300 Energy 98/100 System Corruption 3% Temperature Cool (0) Movement Core (50) Location -7/Lower Caves Parts ------- > --- POWER (2) -------- (None) > --- PROPULSION (5) --- (None) > --- UTILITY (4) ------ (None) > --- WEAPON (2) ------- (None) > --- INVENTORY (5) ---- Improved Flight Unit Faulty Improved Cesium-ion Thruster Advanced Targeting Computer Weapon Cycler Hardlight Generator Peak State ------------ > --- POWER ------------ Enhanced Nuclear Core Micro Nuclear Core > --- PROPULSION ------- Improved Flight Unit Improved Flight Unit Improved Flight Unit Improved Flight Unit Improved Cesium-ion Thruster > --- UTILITY ---------- Medium Storage Unit Weight Redist. System Improved Sensor Array Improved Signal Interpreter > --- WEAPON ----------- Advanced Beam Rifle Gauss Rifle > --- INVENTORY -------- Light Nuclear Core Cold Fusion Reactor Gravmag System Improved Heat Sink Advanced Targeting Computer Weapon Cycler Hardlight Generator Compact Ion Cannon High-powered Shotgun Rocket Launcher [Rating: 46] Favorites ----------- Power Heavy Ion Engine Engine Heavy Ion Engine Power Core Enhanced Nuclear Core Reactor Cold Fusion Reactor Propulsion Aluminum Leg Treads Light Treads Leg Aluminum Leg Flight Unit Improved Flight Unit Utility Medium Storage Unit Device Weight Redist. System Storage Medium Storage Unit Processor Improved Signal Interpreter Weapon Improved EM Shotgun Energy Gun Improved EM Shotgun Energy Cannon Advanced Beam Cannon Ballistic Gun Improved Assault Rifle Launcher Rocket Launcher Special Weapon Mining Laser Build | -11 -10 -9 -9 -8 -7 -7 -7 ------- Run | Yrd Mat Mat Sto Mat Fac Low Low Slots Evolved 6 | . . 2 . 2 2 . . Power 1 | . . . . . 1 . . Propulsion 3 | . . 2 . . 1 . . Utility 2 | . . . . 2 . . . Weapon . | . . . . . . . . Parts Attached 85 | 8 8 14 27 16 11 1 . Power 13 | 1 3 1 5 . 3 . . Engine 7 | 1 1 1 4 . . . . Core 5 | . 2 . . . 3 . . Reactor 1 | . . . 1 . . . . Propulsion 29 | 3 1 9 7 5 4 . . Treads 2 | 1 1 . . . . . . Leg 19 | 2 . 9 7 1 . . . Wheel . | . . . . . . . . Hover . | . . . . . . . . Flight 8 | . . . . 4 4 . . Utility 16 | 2 1 2 4 6 1 . . Device 11 | 1 . 1 3 5 1 . . Storage 2 | 1 . 1 . . . . . Processor 3 | . 1 . 1 1 . . . Hackware . | . . . . . . . . Protection . | . . . . . . . . Artifact . | . . . . . . . . Weapon 27 | 2 3 2 11 5 3 1 . Energy Gun 15 | 2 2 1 6 3 1 . . Energy Cannon 4 | . . . 3 . . 1 . Ballistic Gun 6 | . . 1 1 2 2 . . Ballistic Cannon . | . . . . . . . . Launcher 1 | . . . 1 . . . . Special Weapon 1 | . 1 . . . . . . Impact Weapon . | . . . . . . . . Slashing Weapon . | . . . . . . . . Piercing Weapon . | . . . . . . . . Special Melee Weapon . | . . . . . . . . Unidentified Prototypes 11 | . . . 7 2 2 . . Parts Lost 28 | . 5 1 4 3 5 10 . Power 4 | . 1 . . . 1 2 . Propulsion 10 | . 2 . 2 2 1 3 . Utility 4 | . . . 1 . 1 2 . Weapon 10 | . 2 1 1 1 2 3 . Highest Loss Streak 10 | . 5 1 1 1 2 10 . To Critical Strikes . | . . . . . . . . Average Backups 8 | 3 6 8 9 9 9 8 5 Power . | . . 1 1 1 1 . . Propulsion 1 | 1 2 2 . . 1 2 2 Utility 3 | . 1 2 5 2 3 3 3 Weapon 2 | 1 1 1 2 5 3 1 . Tool/Special . | . . . . . . . . Unused Backups 12 | . 1 . 4 2 1 1 3 Power . | . . . . . . . . Propulsion 4 | . . . 2 1 . 1 . Utility 5 | . 1 . 1 . . . 3 Weapon 3 | . . . 1 1 1 . . Tool/Special . | . . . . . . . . Average Slot Usage (%) 94 | . 95 94 98 95 92 75 . Engine 8 | . 9 11 11 9 . . . Core 3 | . 3 . . . 13 12 . Treads 1 | . 7 5 . . . . . Leg 26 | . 16 33 43 28 . . . Flight 7 | . . . . 3 33 30 . Device 7 | . 6 1 4 17 13 9 . Storage 10 | . 14 11 11 9 7 5 . Processor 7 | . 7 9 6 9 7 6 . Energy Gun 12 | . 22 9 12 13 6 5 . Energy Cannon 1 | . . . 2 . . . . Ballistic Gun 5 | . . 10 5 3 7 3 . Special Weapon 1 | . 5 2 . . . . . Peak Build Rating 46 | 9 13 16 24 34 46 43 1 Average Rating 21 | 5 8 12 20 28 39 33 1 On Entrance 15 | . 9 8 16 21 33 38 1 Naked Turns 42 | . . . . . . 26 16 Heaviest Build 33 | 14 15 28 31 27 33 29 . Greatest Support 52 | 20 40 40 52 52 31 31 3 Greatest Overweight (x) 5 | . 3 1 1 5 1 . . Average Overweight (x) . | . . . . . . . . Largest Inventory Capacity 10 | 8 8 10 10 10 10 10 5 Average Capacity 9 | 7 8 8 10 10 10 8 5 Most Carried 10 | 7 8 10 10 10 10 10 5 Average Carried 8 | 4 6 8 9 9 9 8 5 Final Capacity 10 | 8 8 10 10 10 10 5 5 Final Carried 10 | 5 7 10 9 10 10 5 5 Class Distribution -------------------- 67% | Mutant 25% | Scavenger-Mutant 4% | Scavenger-Sprinter Dominant Class ---------------- Mutant | -10/Materials Scavenger-Mutant | -9/Materials Mutant | -9/Storage Mutant | -8/Materials Mutant | -7/Factory Scavenger-Sprinter | -7/Lower Caves Mutant | -7/Lower Caves Resources | -11 -10 -9 -9 -8 -7 -7 -7 ----------- Run | Yrd Mat Mat Sto Mat Fac Low Low Matter Collected 2009 | 280 102 295 798 211 288 35 . Remotely . | . . . . . . . . Salvage Created 3893 | 134 539 545 1464 466 646 99 . Parts 236 | 14 30 34 108 20 28 2 . Haulers Intercepted 13 | . 1 3 6 1 2 . . Recyclers Shooed 1 | . . . 1 . . . . Parts Field Recycled . | . . . . . . . . Retrieved Matter . | . . . . . . . . Parts Self-Destructed 2 | . . . . . . 2 . Prevented . | . . . . . . . . Kills | -11 -10 -9 -9 -8 -7 -7 -7 ------- Run | Yrd Mat Mat Sto Mat Fac Low Low Combat Hostiles Destroyed 66 | . 11 8 24 7 13 3 . Guns 55 | . 9 8 18 7 11 2 . Cannons 8 | . 2 . 5 . . 1 . AOE 2 | . . . 1 . 1 . . Classes Destroyed 10 | 2 5 1 2 . . . . Worker 1 | . . . 1 . . . . Builder 5 | . . . 5 . . . . Tunneler 4 | 4 . . . . . . . Hauler 13 | . 1 3 6 1 2 . . Recycler 5 | 1 2 . 1 1 . . . Operator 1 | . 1 . . . . . . Watcher 4 | . 2 1 1 . . . . Swarmer 16 | . 3 . 7 . 4 2 . Grunt 40 | . 8 7 10 5 9 1 . Sentry 10 | . . 1 7 2 . . . Best Kill Streak 7 | 5 5 3 7 3 6 3 . Combat Bots Only 6 | . 5 3 4 2 6 3 . Max Kills in Single Turn 3 | 1 1 1 3 1 2 1 . Gunslinging 1 | . . . 1 . 1 . . Exploded 1 | . . . 1 . 1 . . Melee . | . . . . . . . . Uniques/NPCs Destroyed . | . . . . . . . . Combat | -11 -10 -9 -9 -8 -7 -7 -7 -------- Run | Yrd Mat Mat Sto Mat Fac Low Low Hostile Shots Fired 495 | . 90 48 135 46 90 78 8 Missed 131 | . 26 14 39 7 23 19 3 Hits 364 | . 64 34 96 39 67 59 5 Projectile 364 | . 64 34 96 39 67 59 5 Critical Strikes 8 | . . . 1 1 4 2 . Damage Taken 5186 | . 721 415 1388 640 1063 887 72 Core 1266 | . 145 75 239 106 253 376 72 Absorbed by Shields . | . . . . . . . . Core Remaining (%) 60 | 100 42 . 21 80 . . . Volleys Fired 283 | 8 57 35 103 32 35 13 . Largest 2 | 2 2 2 2 2 2 2 . Hottest 140 | 90 140 123 124 114 89 105 . Shots Fired 505 | 16 108 67 176 52 64 22 . Gun 435 | 16 100 64 125 52 64 14 . Cannon 35 | . . . 27 . . 8 . Launcher 24 | . . . 24 . . . . Special 11 | . 8 3 . . . . . Kinetic 133 | . . 35 35 21 32 10 . Thermal 244 | 16 101 32 47 20 16 12 . Explosive 24 | . . . 24 . . . . Electromagnetic 104 | . 7 . 70 11 16 . . Robot Hit Streak 20 | 8 9 12 20 7 7 5 . Robot Miss Streak 5 | 1 3 5 4 2 3 5 . Penetration Max 1 | . . . . . 1 . . Secondary Targets 8 | . 1 . 5 . 1 1 . Max Gunslinging Chain 1 | . 1 . 1 . 1 1 . Shots Hit Robots 312 | 12 69 45 95 32 46 13 . Core Hits 163 | 6 33 19 58 20 23 4 . Critical Kills . | . . . . . . . . Critical Parts Destroyed . | . . . . . . . . Critical Strikes 7 | 1 2 . . . 4 . . Burn 7 | 1 2 . . . 4 . . Melee Attacks . | . . . . . . . . Impact . | . . . . . . . . Slashing . | . . . . . . . . Piercing . | . . . . . . . . Sneak Attacks . | . . . . . . . . Combat Hostiles . | . . . . . . . . Follow-up Attacks . | . . . . . . . . Damage Inflicted 5681 | 141 930 681 2017 655 959 298 . Guns 4698 | 141 834 681 1324 601 921 196 . Cannons 428 | . . . 326 . . 102 . Explosions 426 | . . . 350 38 38 . . Melee . | . . . . . . . . Ramming 33 | . . . 17 16 . . . Kinetic 1640 | . . 410 318 340 456 116 . Thermal 2681 | 141 884 271 753 172 278 182 . Explosive 87 | . . . 87 . . . . Electromagnetic 1240 | . 46 . 842 127 225 . . Impact . | . . . . . . . . Slashing . | . . . . . . . . Piercing . | . . . . . . . . Highest Corruption 3 | . 2 . 1 1 3 3 3 Average Corruption 1 | . 2 . 1 1 3 3 3 Corruption Purged . | . . . . . . . . Corruption Blocked . | . . . . . . . . Effects 22 | . 10 . 4 . 4 4 . Message Errors 5 | . 2 . 1 . . 2 . Matter Fused 5 | . 2 . 1 . 2 . . Heat Flow Errors 5 | . 3 . . . 1 1 . Energy Discharges 1 | . . . 1 . . . . Data Loss (minor) 3 | . 1 . 1 . . 1 . Misfires 1 | . 1 . . . . . . Alerts 2 | . 1 . . . 1 . . Overload Shots . | . . . . . . . . Overflow Damage 18 | . . . 10 8 . . . Projectiles . | . . . . . . . . Explosions 18 | . . . 10 8 . . . Melee . | . . . . . . . . Knockbacks . | . . . . . . . . Impact . | . . . . . . . . Kinetic . | . . . . . . . . Secondary . | . . . . . . . . Self-Inflicted Damage 247 | . . . 168 37 42 . . Shots 8 | . . . 6 1 1 . . Rammed . | . . . . . . . . Targets Rammed 6 | . . . 5 1 . . . Kicked 6 | . . . 5 1 . . . Crushed . | . . . . . . . . Highest Temperature 557 | 90 473 170 557 43 413 442 . Average Temperature 119 | 35 151 45 124 13 111 160 . Received Heat Transfer 1956 | . 315 222 420 333 405 261 . Effects 25 | . 7 . 10 . 7 1 . Shutdowns 9 | . 3 . 3 . 3 . . Energy Bleed 5 | . 3 . 2 . . . . Interference 4 | . 1 . . . 3 . . Matter Decay 2 | . . . 2 . . . . Short Circuit 2 | . . . . . 1 1 . Damage (major) 2 | . . . 2 . . . . Damage (core) 1 | . . . 1 . . . . Siege Activations . | . . . . . . . . Martial Activations . | . . . . . . . . Shielding Activations . | . . . . . . . . Robots Disrupted . | . . . . . . . . Combat Hostiles . | . . . . . . . . Robots Corrupted 1 | . . . . . 1 . . Combat Hostiles 1 | . . . . . 1 . . Parts Fried 1 | . . . . . 1 . . Impact Corruptions . | . . . . . . . . Robots Melted . | . . . . . . . . Combat Hostiles . | . . . . . . . . Parts Melted 9 | . 2 . 4 . 1 2 . Heat Transferred 6128 | 446 2282 691 1262 309 790 348 . Parts Sabotaged . | . . . . . . . . Parts Stolen . | . . . . . . . . Parts Stripped . | . . . . . . . . Power Chain Reactions 6 | . . . 4 1 1 . . Alert | -11 -10 -9 -9 -8 -7 -7 -7 ------- Run | Yrd Mat Mat Sto Mat Fac Low Low Maximum Alert Level 1 | . . . 1 . . . . Low Security (%) 82 | 100 100 100 56 100 100 . . Level 1 17 | . . . 43 . . . . Level 2 . | . . . . . . . . Level 3 . | . . . . . . . . Level 4 . | . . . . . . . . Level 5 . | . . . . . . . . High Security . | . . . . . . . . Max Security . | . . . . . . . . Peak Influence 391 | 10 97 83 391 193 161 . . Initial 163 | . . 11 14 163 76 . . Average 105 | 2 43 32 168 140 78 . . Influence Increases 2247 | 25 334 231 882 234 391 135 15 Destroy 0b10 Robot/C 1320 | . 220 160 480 140 260 60 . Destroy 0b10 Robot/NC 165 | 25 30 20 70 10 10 . . Destroy Leader 324 | . 66 48 124 42 44 . . Successful Hack 81 | . . . 46 9 26 . . Disable Machine 120 | . . . 90 30 . . . Destroy Structure 72 | . 3 3 57 3 6 . . Lose Combat Pursuer 165 | . 15 . 15 . 45 75 15 Influence Decreases 2229 | 25 307 224 529 452 461 229 2 Entered New Map 392 | . . 16 20 224 93 37 2 Time Decay 1548 | 25 257 198 452 198 318 100 . Lost Part 272 | . 50 10 40 30 50 92 . Lost Ally 17 | . . . 17 . . . . Squads Dispatched 20 | . 2 1 6 2 9 . . Investigation 8 | . . 1 4 1 2 . . Extermination 2 | . . . . . 2 . . Reinforcement 9 | . 2 . 1 1 5 . . Assault . | . . . . . . . . Garrison 1 | . . . 1 . . . . Intercept . | . . . . . . . . Searches Triggered . | . . . . . . . . Construction Impeded . | . . . . . . . . Haulers Reinforced 1 | . . . . . 1 . . Active Scanning Responses . | . . . . . . . . Cargo Convoy Interrupts . | . . . . . . . . Stealth | -11 -10 -9 -9 -8 -7 -7 -7 --------- Run | Yrd Mat Mat Sto Mat Fac Low Low Distress Signals 9 | . 3 2 2 1 1 . . Communications Jammed . | . . . . . . . . Distress Signals . | . . . . . . . . Times Spotted 127 | . 20 20 35 11 26 9 6 Peak Tracking Total 9 | . 6 5 5 4 9 6 6 Tactical Retreats 7 | . 1 . 1 . 1 3 1 Traps | -11 -10 -9 -9 -8 -7 -7 -7 ------- Run | Yrd Mat Mat Sto Mat Fac Low Low Traps Triggered 4 | . 1 1 2 . . . . Indirectly . | . . . . . . . . Trap Hack Attempts . | . . . . . . . . Triggered . | . . . . . . . . Disarmed 6 | . . . 6 . . . . Reprogrammed . | . . . . . . . . Reused . | . . . . . . . . Traps Extracted . | . . . . . . . . Installed . | . . . . . . . . Triggered . | . . . . . . . . Machines | -11 -10 -9 -9 -8 -7 -7 -7 ---------- Run | Yrd Mat Mat Sto Mat Fac Low Low Machines Disabled 8 | . . . 6 2 . . . Max in Single Turn 1 | . . . 1 1 . . . Garrison Access 1 | . . . 1 . . . . Machines Repaired . | . . . . . . . . Machines Dismantled . | . . . . . . . . Machines Sabotaged . | . . . . . . . . Overloaded Fab Kills . | . . . . . . . . Hacking | -11 -10 -9 -9 -8 -7 -7 -7 --------- Run | Yrd Mat Mat Sto Mat Fac Low Low Machines Accessed 34 | . 4 1 17 5 5 2 . Terminals 20 | . 2 1 14 1 2 . . Fabricators 1 | . . . . . 1 . . Repair Stations 1 | . . . . 1 . . . Recycling Units 5 | . 2 . 2 1 . . . Scanalyzers 3 | . . . . 1 2 . . Garrison Access 2 | . . . 1 1 . . . Total Hacks 80 | . 9 4 38 12 13 4 . Successful 35 | . 2 1 17 5 6 4 . Failed 45 | . 7 3 21 7 7 . . Catastrophic 5 | . 2 . 3 . . . . Database Lockouts . | . . . . . . . . Manual . | . . . . . . . . Terminals 45 | . 3 4 33 1 4 . . Fabricators 3 | . . . . . 3 . . Repair Stations 4 | . . . . 4 . . . Recycling Units 11 | . 6 . 4 1 . . . Scanalyzers 9 | . . . . 3 6 . . Garrison Access 4 | . . . 1 3 . . . Terminal Hacks 21 | . . 1 15 1 . 4 . Record 4 | . . . 1 . . 3 . Robot Analysis 1 | . . . 1 . . . . Open Door 7 | . . . 6 . . 1 . Locate Traps 1 | . . . 1 . . . . Disarm Traps 1 | . . . 1 . . . . Recall Investigation 1 | . . . . 1 . . . Hauler Manifests 1 | . . . 1 . . . . Registered Components 1 | . . . 1 . . . . Zone Layout 4 | . . 1 3 . . . . Fabricator Hacks 2 | . . . . . 2 . . Load Schematic 1 | . . . . . 1 . . Build 1 | . . . . . 1 . . Repair Station Hacks 2 | . . . . 2 . . . Scan Component 2 | . . . . 2 . . . Recycling Unit Hacks 4 | . 2 . 1 1 . . . Retrieve Components 4 | . 2 . 1 1 . . . Scanalyzer 5 | . . . . 1 4 . . Insert Component 3 | . . . . 1 2 . . Analyze 2 | . . . . . 2 . . Garrison Access Hacks 1 | . . . 1 . . . . Seal Access 1 | . . . 1 . . . . Unauthorized Hacks . | . . . . . . . . Terminals . | . . . . . . . . Fabricators . | . . . . . . . . Repair Stations . | . . . . . . . . Recycling Units . | . . . . . . . . Scanalyzers . | . . . . . . . . Garrison Access . | . . . . . . . . Data Cores Recovered . | . . . . . . . . Used . | . . . . . . . . Hacking Detections 24 | . 4 1 11 4 4 . . Full Trace Events 9 | . . . 5 2 2 . . Feedback Events 2 | . . . 1 1 . . . Corruption 2 | . . . 1 1 . . . Feedback Blocked . | . . . . . . . . Robot Schematics Acquired . | . . . . . . . . Robots Built . | . . . . . . . . Authchips . | . . . . . . . . Time . | . . . . . . . . Total Robot Build Rating . | . . . . . . . . Part Schematics Acquired 2 | . . . . . 2 . . Parts Built 1 | . . . . . 1 . . Authchips . | . . . . . . . . Time 67 | . . . . . 67 . . Total Part Build Rating 4 | . . . . . 4 . . Parts Repaired . | . . . . . . . . Time . | . . . . . . . . Parts Recycled . | . . . . . . . . Recycled Matter . | . . . . . . . . Retrieved Matter . | . . . . . . . . Retrieved Components 22 | . 11 . 9 2 . . . Parts Scanalyzed 2 | . . . . 1 1 . . Part Schematics Acquired 2 | . . . . . 2 . . Parts Damaged 2 | . . . . 1 1 . . Bothacking | -11 -10 -9 -9 -8 -7 -7 -7 ------------ Run | Yrd Mat Mat Sto Mat Fac Low Low Used RIF Installer . | . . . . . . . . Robots Hacked . | . . . . . . . . Non-combat . | . . . . . . . . Combat . | . . . . . . . . Robot Hacks Applied . | . . . . . . . . Relay Couplers Released . | . . . . . . . . Fabnet Peak Effective % . | . . . . . . . . Robots Rewired . | . . . . . . . . Allies Hacked . | . . . . . . . . Hacks Repelled . | . . . . . . . . Allies | -11 -10 -9 -9 -8 -7 -7 -7 -------- Run | Yrd Mat Mat Sto Mat Fac Low Low Total Allies . | . . . . . . . . Largest Group . | . . . . . . . . Highest-Rated Group . | . . . . . . . . Highest-Rated Ally . | . . . . . . . . Total Orders 8 | . . . 8 . . . . ROAM 1 | . . . 1 . . . . EXPLORE 7 | . . . 7 . . . . Ally Attacks . | . . . . . . . . Total Damage . | . . . . . . . . Kills . | . . . . . . . . Allies Corrupted 1 | . . . 1 . . . . Allies Melted . | . . . . . . . . Intel | -11 -10 -9 -9 -8 -7 -7 -7 ------- Run | Yrd Mat Mat Sto Mat Fac Low Low Active Infowar (turns) 2068 | 24 618 478 . 412 536 . . Sensors 948 | . . . . 412 536 . . Terrain 267 | 24 243 . . . . . . T.N.C. 853 | . 375 478 . . . . . Robot Analysis Total 1 | . . . 1 . . . . Derelict Logs Recovered 2 | . . . . . . 2 . Drone Launches 8 | . . . 8 . . . . Drone Recoveries 4 | . . . 4 . . . . Exploration | -11 -10 -9 -9 -8 -7 -7 -7 ------------- Run | Yrd Mat Mat Sto Mat Fac Low Low Turns Passed 4237 | 112 681 543 1569 412 703 201 16 Spaces Moved 3027 | 58 310 287 902 285 598 555 32 Core 126 | 7 34 . . . . 53 32 Treads 161 | 9 95 57 . . . . . Legs 1543 | 42 181 230 902 188 . . . Wheels . | . . . . . . . . Hover . | . . . . . . . . Flight 1197 | . . . . 97 598 502 . Fastest Speed 26 | 50 120 120 120 31 26 26 50 Average Speed 94 | 117 141 128 122 92 75 28 50 Slowest Speed 400 | 160 200 190 190 400 104 50 50 Overloaded Moves . | . . . . . . . . Propulsion Burnouts . | . . . . . . . . Robots Hopped 1 | . . . . . 1 . . Potential Cave-ins 2 | . . . 2 . . . . Cave-ins Triggered . | . . . . . . . . Exploration Rate (%) 35 | 5 37 29 92 26 19 63 10 Regions Visited 7 Branch Regions 3 Pre-discovered Areas 1 | . . . . . . 1 . Known Exits Taken 3 | . . . 1 1 1 . . Unknown Exits Taken 4 | 1 1 1 . . . 1 . Scrap Searched 3 | . . . . . . 3 . Spaces Dug 26 | . . 1 25 . . . . Terrain Destroyed 90 | . 2 2 79 3 4 . . Melee . | . . . . . . . . Projectile 4 | . 2 2 . . . . . AOE 86 | . . . 79 3 4 . . Terrain Rammed . | . . . . . . . . Walls Destroyed . | . . . . . . . . Machines Disabled . | . . . . . . . . Actions | -11 -10 -9 -9 -8 -7 -7 -7 --------- Run | Yrd Mat Mat Sto Mat Fac Low Low Total 3884 | 85 434 396 1192 383 786 576 32 Wait 362 | . 44 44 114 25 130 5 . Move 3018 | 57 309 286 901 284 595 554 32 Hop 1 | . . . . . 1 . . Pick Up 54 | 12 8 7 12 10 4 1 . Fast Attach 17 | . . 2 6 4 5 . . Attach 24 | 7 5 1 2 4 2 3 . Detach 3 | . . . . 1 2 . . Swap 63 | 1 6 12 27 12 5 . . Drop 53 | . 5 9 22 10 7 . . Fire 283 | 8 57 35 103 32 35 13 . Melee . | . . . . . . . . Ram . | . . . . . . . . Kick 6 | . . . 5 1 . . . Crush . | . . . . . . . . Escape Stasis . | . . . . . . . . Rewire . | . . . . . . . . Trap . | . . . . . . . . Miscellaneous . | . . . . . . . . Route ------- -11/Scrapyard -10/Materials -9/Materials -9/Storage -8/Materials -7/Factory -7/Lower Caves -7/Lower Caves History --------- Turn | Location | Event 6 | -11/Scrapyard | Discovered new exit (range 16) 113 | -11/Scrapyard | Entered Materials 331 | -10/Materials | Build established: Mutant 529 | -10/Materials | Core integrity fell below 50% 557 | -10/Materials | Lost 5 parts (1p2n2w) 676 | -10/Materials | Discovered new exit (range 4) 794 | -10/Materials | Entered another Materials area 794 | -9/Materials | Evolved 2 slots: Propulsion x2 999 | -9/Materials | Discovered new exit (range 16) 1227 | -9/Materials | Build established: Scavenger-Mutant 1337 | -9/Materials | Entered Storage 1872 | -9/Storage | Core integrity fell below 50% 1981 | -9/Storage | Discovered new exit (range 13) 2408 | -9/Storage | Build established: Mutant 2871 | -9/Storage | Garrison activated, responded to threat 2901 | -9/Storage | Identified exit to Materials 2906 | -9/Storage | Entered Materials 2906 | -8/Materials | Evolved 2 slots: Utility x2 3311 | -8/Materials | Discovered new exit (range 7) 3318 | -8/Materials | Identified exit to Factory 3318 | -8/Materials | Entered Factory 3318 | -7/Factory | Evolved 2 slots: Power x1, Propulsion x1 3944 | -7/Factory | Discovered new exit (range 8) 4017 | -7/Factory | Fabricated Imp. Cesium-ion Thruster (x1) 4021 | -7/Factory | Identified exit to Lower Caves 4021 | -7/Factory | Entered Lower Caves 4022 | -7/Lower Caves | Encountered a Warlord checkpoint 4025 | -7/Lower Caves | Learned location of 1 exit from Factory 4118 | -7/Lower Caves | Entered an active Warlord outpost 4119 | -7/Lower Caves | Learned 8 Factory zone layouts 4119 | -7/Lower Caves | Learned Armory terminal intel 4154 | -7/Lower Caves | Learned 4 Factory zone layouts 4169 | -7/Lower Caves | Attracted the attention of an 0b10 base 4176 | -7/Lower Caves | Core integrity fell below 50% 4196 | -7/Lower Caves | Released all parts (4) 4199 | -7/Lower Caves | Core integrity fell below 20% 4218 | -7/Lower Caves | Discovered new exit (range 8) 4222 | -7/Lower Caves | Entered another Lower Caves area 4224 | -7/Lower Caves | Attracted the attention of an 0b10 checkpoint 4227 | -7/Lower Caves | Lost 10 parts (2p3n2u3w) 4238 | -7/Lower Caves | Destroyed by S-27 Virus with Autogun Last Messages --------------- 04180_ Enh. Nuclear Core destroyed. 04186_ Aluminum Leg fries itself beyond repair. 04186_ VTOL Module destroyed. 04187_ G-47 Trooper springs to life. 04188_ Hpw. Shotgun destroyed. 04190_ Lgt. Nuclear Core destroyed. 04192_ S-27 Virus destroyed. 04194_ Weight Redist. System broken. 04194_ Overheating: Short circuit. 04196_ Plasma Cannon destroyed. 04196_ Released Imp. Cesium-ion Thruster. 04196_ Released Imp. Flight Unit. 04196_ Released Imp. Signal Interpreter. 04196_ Released Broken Weight Redist. System. 04201_ System corrupted: Heat flow error (+114). 04202_ Critical hit (Burn: +37). 04218_ EXIT=FOUND LOCATION=UNKNOWN GOAL=ESCAPE 04224_ Y-54 Guardian: "INTERCEPTING UNREGISTERED DERELICT." Map ----- +----------------------------------------------------+ | | | | | | | ?????????????????????????????????????????????????? | | ?????????????????????????????????????????????????? | | ?????????????????????????????????????????????????? | | ?????????????????????????????????????????????????? | | ?????????????????????????????????????????????????? | | ?????????????????????????????????????????????????? | | ?????????????????????????????????????????????????? | | ?????????????????????????????????????????????????? | | ?????????????????????????????????????????????????? | | ?????????????????????????????????????????????????? | | ?????????????????????????????????????????????????? | | ?????????????????????????????????????????????????? | | ?????????????????????????????????????????????????? | | ?????????????????????????????????????????????????? | | ?????????????????????????????????????????????????? | | ?????????????????????????????????????????????????? | | ????????????????????????????????????????? ???????? | | ???????????????????????????????????????? ??????? | | ??????????????????????????????????????? #?????? | | ?????????????????#?#?????###?????????? ??????? | | ?????????????????# ????# ###??????? ?????? | | ????????????????? #?## # ####### #?????? | | ?????????????????# #@ #??????? | | ?????????????????# #???????? | | ?????????????????# # #### #????????? | | ?????????????????# ### #??????????????? | | ?????????????????###???### #s # #??????????????? | | ?????????????????????????## # #??????????????? | | ??????????????????????????## ######??????????? | | ???????????????????????????## # # ##?????????? | | ????????????????????????????## # ## ######????? | | ?????????????????????????????# ???? | | ???????????????????????# ????# # ???? | | ????????????????????#### ???## # ########????? | | ???????????????????## #### # #???????????? | | ???????????????????# # ##???????????? | | ?????????????????????????# #####????????????? | | ?????????????????????????# ####?????????????? | | ?????????????????????????# #?????????????? | | ???????????????????????# ## #?????????????? | | ??????????????????? # ### #?????????????? | | ?????????????????# #??# #?????????????? | | ?????????????????? ???# #?####????????? | | ?????????????????? ### ####???# #?# ##???????? | | ??????????????????????####???????# #?# ######### | | ?????????????????????????????????# #?# | | ?????????????????????????????????# ### | +----------------------------------------------------+ Best States ------------- Heat Dissipation 48 Energy Generation 27 Energy Capacity 360 Matter Stores 300 Matter Capacity 300 Sight Range 16 Robot Scan Range 15 Terrain Scan Range 16 Terrain Scan Density 10 Additional Mass Support 6 Evasion (%) 64 Recoil Reduction 2 Item Schematics ----------------- Cold Fusion Reactor | -7/Factory | Scanalyzed Imp. Cesium-ion Thruster | -7/Factory | Scanalyzed Robot Schematics ------------------ None Fabricated ------------ Imp. Cesium-ion Thruster | x1 | -7/Factory Repaired ---------- Nothing Alien Tech Used ----------------- None Achievements -------------- Party Time Challenges ------------ None Game ------ Seed HybridDisruptionUnit Manual? 0 Play Time 01:05:04 Cumulative 14.6 hours Start 2025.05.26 @ 17:24:49 End 2025.05.26 @ 19:06:25 Sessions 1 Manual Loads 0 Difficulty Rogue Special Mode None Game No. 18 Rogue 18 Adventurer 0 Explorer 0 Win Type - Total 0 Types 0/0/0/0/0/0/0/0/0/0 Lore% 17 Gallery% 18 Achievement% 18 Wizard Run 0 Options --------- Layout 0 ASCII 0 Keyboard 0 Movement Mouse Keybinds 0 Fullscreen 1 Font 18/SmallcapsGlow Map View 76x50 Zoom Use 0% Tactical HUD 1 Map Filters NONE Filters NONE Steam 1 RUN: 77dabd06-d1be-4f39-b8d4-5d230918e1e7